bitfinex/quotes_ETHUSD_20250424
["timestamp","ask_amount","ask_price","bid_price","bid_amount"]
[1745502357686,12.56039361,1751.6,1751.1,28.56157079]
[1745502357868,5.70944214,1751.5,1751.1,28.56157079]
[1745502358066,5.70985651,1751.4,1751.1,22.851]
[1745502358263,5.70985651,1751.4,1751.1,5.213]
[1745502358264,5.71030073,1751.3,1751.1,5.213]
[1745502358577,5.71037003,1751.2,1750.9,0.531]
[1745502358779,5.71033747,1751.3,1750.9,0.531]
[1745502358780,11.42069155,1751.3,1750.9,0.531]
[1745502358998,5.71038298,1751.2,1750.9,0.531]
[1745502359364,6.36002452,1751.3,1750.8,10.92448483]
[1745502359508,6.36002452,1751.3,1750.8,5.213]
[1745502360045,6.36002452,1751.3,1750.8,10.92442932]
[1745502360247,0.64976375,1751.3,1750.9,5.71105671]
[1745502360547,6.49714662,1751.4,1751.0,5.71092227]
[1745502360708,0.7873,1751.4,1751.0,5.71092227]
[1745502360910,0.7873,1751.4,1751.0,5.71082505]
[1745502361220,13.35216131,1751.6,1751.1,6.24152628]
[1745502361423,7.64282013,1751.6,1751.1,6.24152628]
[1745502361665,6.47387008,1751.5,1751.1,0.531]
[1745502361842,0.76428201,1751.5,1751.1,0.531]
[1745502362028,0.76428201,1751.5,1751.1,6.24147802]
[1745502362236,0.7918,1751.6,1751.2,5.71035306]
[1745502362558,6.4685101,1751.8,1751.4,5.70961125]
[1745502362757,0.7574,1752.1,1751.4,0.531]
[1745502362922,5.70808648,1752.0,1751.4,6.24052169]
[1745502363112,5.70778682,1752.0,1751.5,5.70919463]
[1745502363318,6.46497558,1752.1,1751.4,0.531]
[1745502363319,5.70854164,1751.8,1751.4,0.531]
[1745502363556,6.48824164,1751.8,1751.3,5.70993854]
[1745502363741,6.48824164,1751.8,1751.3,10.92391714]
[1745502364366,6.48824164,1751.8,1751.3,16.63374121]
[1745502364584,0.7797,1751.8,1751.4,5.70964152]
[1745502364862,0.7797,1751.8,1751.4,5.70958805]
[1745502365365,13.4736782,1751.8,1751.3,10.92386223]
[1745502365532,5.70886754,1751.7,1751.3,5.214]
[1745502366487,11.41786893,1751.7,1751.3,5.214]
[1745502366637,5.70907091,1751.6,1751.3,5.214]
[1745502366849,11.41793641,1751.7,1751.3,5.214]
[1745502367045,1.34743463,1751.7,1751.0,8.71078923]
[1745502367250,0.7827,1751.6,1751.1,10.92467911]
[1745502367573,0.7827,1751.6,1751.2,5.71019451]
[1745502367880,0.7827,1751.6,1751.3,5.70993537]
[1745502368095,6.49178482,1751.6,1751.2,5.71019451]
[1745502368253,0.7827,1751.6,1751.2,5.71017779]
[1745502368448,0.7827,1751.9,1751.6,5.70886101]
[1745502368648,0.7827,1751.9,1751.5,10.92324778]
[1745502368860,6.49095857,1751.9,1751.5,10.92338137]
[1745502369063,0.7827,1751.9,1751.5,10.92338137]
[1745502369283,0.7827,1751.9,1751.5,10.92317349]
[1745502369487,0.7827,1752.1,1751.7,5.70861553]
[1745502369655,6.49017652,1752.1,1751.7,0.531]
[1745502369989,5.70786059,1752.0,1751.7,0.531]
[1745502370297,5.70786059,1752.0,1751.6,1.09231735]
[1745502370499,11.41594083,1752.0,1751.6,1.09231735]
[1745502370660,6.49029353,1752.1,1751.6,5.70896454]
[1745502371001,0.7934,1752.5,1751.6,3.0]
[1745502371165,0.7934,1752.5,1751.7,0.531]
[1745502371502,6.4997243,1752.5,1752.0,5.70753851]
[1745502371796,5.70680666,1752.3,1752.0,5.214]
[1745502371977,5.70668785,1752.4,1752.0,5.214]
[1745502372182,5.70684101,1752.3,1752.0,5.214]
[1745502372394,5.70678685,1752.3,1752.0,5.214]
[1745502372693,5.70681587,1752.3,1752.0,5.214]
[1745502372899,5.7066857,1752.4,1752.0,5.214]
[1745502373054,0.7934,1752.5,1752.0,5.214]
[1745502373251,0.7651,1752.8,1752.4,5.70622179]
[1745502373496,0.7651,1752.8,1752.4,0.531]
[1745502373705,0.7521,1753.1,1752.4,5.745]
[1745502373850,0.7521,1753.1,1752.7,11.41054175]
[1745502374192,6.45558967,1753.4,1752.8,11.45005612]
[1745502374445,5.70452393,1753.0,1752.8,5.213]
[1745502374643,5.70438209,1753.1,1752.8,5.213]
[1745502374827,6.27506808,1753.0,1752.8,5.213]
[1745502375143,0.57043821,1753.0,1752.8,5.213]
[1745502375648,6.27507788,1753.0,1752.8,5.213]
[1745502376200,0.57043821,1753.0,1752.8,5.213]
[1745502376421,5.70402143,1753.2,1752.8,5.213]
[1745502376633,5.84317496,1753.3,1752.8,5.213]
[1745502376820,5.70469057,1753.0,1752.8,5.213]
[1745502377242,5.84317496,1753.3,1752.5,5.213]
[1745502377243,6.47583199,1752.9,1752.5,5.213]
[1745502377406,5.70526978,1752.8,1752.5,5.213]
[1745502378359,7.12360814,1752.9,1752.5,5.213]
[1745502378561,5.70435326,1753.1,1752.6,5.70577959]
[1745502379127,5.70435326,1753.1,1752.5,10.91896696]
[1745502379331,5.70435326,1753.1,1752.5,10.91892313]
[1745502379670,0.8157,1753.2,1752.8,5.70510733]
[1745502379963,5.70372212,1753.3,1752.8,6.806437]
[1745502380125,5.05927496,1753.3,1752.9,5.212]
[1745502380443,5.70437339,1753.1,1752.9,5.212]
[1745502380815,6.52250656,1753.0,1752.9,5.212]
[1745502381871,0.818,1753.0,1752.9,5.212]
[1745502382011,6.53499818,1753.2,1752.9,5.212]
[1745502382219,0.831,1753.2,1752.9,5.212]
[1745502382431,6.53504502,1753.2,1752.9,5.212]
[1745502382631,0.831,1753.2,1752.9,5.212]
[1745502383032,6.53485951,1753.2,1752.9,5.212]
[1745502383430,0.831,1753.2,1752.9,5.212]
[1745502383637,6.53487657,1753.2,1752.9,5.212]
[1745502384615,0.831,1753.2,1752.9,5.212]
[1745502384818,5.70441042,1753.1,1752.9,5.212]
[1745502385152,5.70380747,1753.3,1752.9,5.212]
[1745502385457,5.70450656,1753.0,1752.9,5.212]
[1745502385843,6.52837272,1753.1,1752.9,5.212]
[1745502386023,0.8241,1753.1,1752.9,5.212]
[1745502386226,5.70505787,1752.9,1752.6,0.531]
[1745502387323,0.8241,1753.1,1752.6,0.531]
[1745502387521,5.7046166,1753.0,1752.6,0.531]
[1745502387720,5.70483218,1752.9,1752.6,0.531]
[1745502387953,5.70580851,1752.6,1752.2,22.885]
[1745502388151,5.70671989,1752.4,1752.2,22.354]
[1745502388356,5.7064767,1752.4,1752.2,5.229]
[1745502388534,5.7063059,1752.5,1752.2,5.229]
[1745502388753,5.82797496,1752.7,1752.2,6.32264025]
[1745502388754,6.47437152,1752.7,1752.2,6.32264025]
[1745502388927,5.70625181,1752.5,1752.2,6.32264025]
[1745502389264,5.70582314,1752.6,1752.2,6.32264025]
[1745502389562,5.7066066,1752.4,1752.2,5.229]
[1745502390453,6.47429693,1752.7,1752.2,5.229]
[1745502390651,6.47429693,1752.7,1752.2,10.93592033]
[1745502390851,5.70595846,1752.6,1752.2,10.9361048]
[1745502391152,5.70531922,1752.8,1752.3,6.23774984]
[1745502391356,5.70553823,1752.7,1752.4,0.62377498]
[1745502392174,5.70604704,1752.6,1752.3,0.531]
[1745502392329,5.70627885,1752.5,1752.2,5.229]
[1745502392666,5.7059808,1752.6,1752.2,5.229]
[1745502392667,6.4786808,1752.6,1752.2,5.229]
[1745502392823,5.70616076,1752.5,1752.2,5.229]
[1745502393023,6.4786808,1752.6,1752.2,10.93605979]
[1745502393252,0.7727,1752.6,1752.2,12.65331249]
[1745502393446,5.70561072,1752.7,1752.3,5.70672681]
[1745502393785,6.47786102,1752.8,1752.4,5.70640241]
[1745502393986,0.7727,1752.8,1752.4,0.531]
[1745502394169,5.7055279,1752.7,1752.4,0.531]
[1745502394981,6.47813351,1752.8,1752.4,0.531]
[1745502395191,6.47813351,1752.8,1752.4,1.15476263]
[1745502395396,6.47813351,1752.8,1752.4,6.8611286]
[1745502395569,12.1836051,1752.8,1752.4,1.15476263]
[1745502396160,6.47807473,1752.8,1752.4,0.531]
[1745502396661,12.18350873,1752.8,1752.4,0.531]
[1745502396910,5.70552312,1752.7,1752.4,0.531]
[1745502397193,12.18350055,1752.8,1752.4,0.531]
[1745502397493,6.47807473,1752.8,1752.4,0.531]
[1745502397888,12.18350952,1752.8,1752.4,0.531]
[1745502398087,6.47807473,1752.8,1752.4,1.15475592]
[1745502398292,5.70503609,1752.9,1752.5,5.70613241]
[1745502398672,5.70517406,1752.8,1752.4,6.86099978]
[1745502399367,11.41145299,1752.7,1752.4,0.531]
[1745502399567,5.70570878,1752.7,1752.4,0.531]
[1745502399774,5.705826,1752.6,1752.4,0.531]
[1745502399978,5.705826,1752.6,1752.2,7.47743783]
[1745502400179,5.705826,1752.6,1752.2,13.18445854]
[1745502400714,5.84517496,1752.7,1751.9,0.531]
[1745502401012,0.7859,1752.4,1752.0,5.70776255]
[1745502401189,11.41278925,1752.5,1752.0,5.70753974]
[1745502401358,0.7859,1752.6,1751.9,6.23888398]
[1745502401563,5.70687653,1752.3,1751.9,6.23888398]
[1745502401873,5.70687653,1752.3,1751.9,7.95649932]
[1745502402602,11.41318547,1752.4,1751.9,7.95649062]
[1745502402804,5.70646547,1752.4,1751.9,7.95649062]
[1745502403005,5.70632315,1752.5,1752.0,5.70760667]
[1745502403006,5.70619303,1752.5,1752.0,5.70760667]
[1745502403204,5.70659756,1752.4,1752.0,5.70760667]
[1745502403504,5.70619303,1752.5,1752.0,7.07395505]
[1745502404003,5.70679899,1752.3,1751.9,2.24861534]
[1745502404174,5.70655995,1752.4,1751.9,6.23892463]
[1745502405109,5.70786586,1752.0,1751.7,0.531]
[1745502405265,5.70824507,1751.9,1751.7,5.229]
[1745502405465,5.7084142,1751.8,1751.7,5.229]
[1745502405771,5.7084142,1751.8,1751.5,0.531]
[1745502405959,6.48611352,1752.1,1751.5,6.2402167]
[1745502406163,5.70825215,1751.9,1751.5,0.531]
[1745502406599,11.41660846,1751.9,1751.5,0.531]
[1745502406772,5.70845624,1751.8,1751.5,0.531]
[1745502407783,5.70927149,1751.6,1751.3,0.531]
[1745502407982,11.98951621,1751.6,1751.3,0.531]
[1745502408181,5.70971793,1751.4,1751.1,22.347]
[1745502408388,5.71037003,1751.2,1750.8,0.531]
[1745502408585,5.71117808,1751.0,1750.7,5.23]
[1745502408993,5.71155616,1750.9,1750.7,5.23]
[1745502409206,5.71167466,1750.8,1750.7,5.23]
[1745502409507,0.805,1751.2,1750.6,0.5]
[1745502409663,5.71140293,1750.9,1750.6,0.5]
[1745502410292,5.71156058,1750.9,1750.6,0.5]
[1745502410487,5.711158,1751.0,1750.6,0.5]
[1745502410687,5.71146653,1750.9,1750.6,0.5]
[1745502411266,6.85321978,1751.0,1750.6,6.21219281]
[1745502411267,6.85327124,1751.0,1750.6,6.21219281]
[1745502411467,6.85327124,1751.0,1750.6,0.5]
[1745502411956,12.56458528,1751.0,1750.6,0.5]
[1745502412106,12.56456502,1751.0,1750.6,0.5]
[1745502412321,5.71181001,1750.8,1750.6,0.5]
[1745502412686,6.49016358,1750.9,1750.6,0.5]
[1745502412881,5.71167551,1750.8,1750.6,0.5]
[1745502413272,5.71200091,1750.7,1750.6,0.5]
[1745502413611,6.85436855,1750.7,1750.6,0.5]
[1745502415009,5.71174618,1750.8,1750.6,0.5]
[1745502415225,5.71200091,1750.7,1750.6,0.5]
[1745502415978,5.71189008,1750.8,1750.6,0.5]
[1745502416225,11.42381166,1750.8,1750.6,0.5]
[1745502416419,0.7786,1750.9,1750.6,0.5]
[1745502416720,5.71180488,1750.8,1750.6,0.5]
[1745502416915,6.49008353,1750.9,1750.6,0.5]
[1745502417131,12.2016773,1750.9,1750.6,0.5]
[1745502417503,5.71175128,1750.8,1750.6,0.5]
[1745502417709,6.28317604,1750.7,1750.6,0.5]
[1745502418224,0.57117513,1750.7,1750.6,0.5]
[1745502418531,5.71175128,1750.8,1750.6,0.5]
[1745502418723,5.71200091,1750.7,1750.6,0.5]
[1745502419233,6.51110091,1750.7,1750.6,0.5]
[1745502419472,5.71265352,1750.5,1750.1,5.2]
[1745502419604,0.7991,1750.7,1750.1,5.2]
[1745502419605,0.7991,1750.7,1750.2,5.71347471]
[1745502419930,0.7991,1751.1,1750.4,5.71297989]
[1745502420137,5.71117794,1751.0,1750.5,10.91245282]
[1745502420532,5.71135405,1750.9,1750.5,5.2]
[1745502420847,6.50993412,1751.1,1750.6,5.71220823]
[1745502421002,6.53521054,1751.3,1750.7,6.2427636]
[1745502421209,5.71056344,1751.2,1750.7,6.24282608]
[1745502421446,5.7108143,1751.1,1750.7,6.24282608]
[1745502421738,5.71152057,1750.9,1750.5,5.2]
[1745502422036,5.71214163,1750.7,1750.5,5.2]
[1745502422204,5.71181752,1750.8,1750.5,5.2]
[1745502422534,12.07673077,1750.9,1750.5,5.2]
[1745502422737,5.71168568,1750.8,1750.5,5.2]
[1745502422925,5.71243386,1750.6,1750.2,5.731]
[1745502423107,5.71298436,1750.4,1750.2,5.2]
[1745502423323,5.71270022,1750.5,1750.2,5.2]
[1745502423934,5.71251851,1750.6,1750.2,5.2]
[1745502424131,6.51206825,1750.7,1750.2,10.91358261]
[1745502424406,5.71245837,1750.6,1750.2,5.2]
[1745502424606,5.71245837,1750.6,1750.2,10.9136216]
[1745502424912,6.51206825,1750.7,1750.2,16.62710864]
[1745502425245,6.51206825,1750.7,1750.2,16.62690406]
[1745502425410,6.50183056,1750.9,1750.4,5.7128616]
[1745502425611,5.71194789,1750.8,1750.4,5.71294427]
[1745502425810,5.71115987,1751.0,1750.6,5.71231484]
[1745502426139,6.50107281,1751.1,1750.7,6.24281941]
[1745502426341,5.71104573,1751.0,1750.7,0.531]
[1745502426551,6.50107281,1751.1,1750.7,0.531]
[1745502426714,5.71106839,1751.0,1750.7,0.531]
[1745502426909,5.71161253,1750.9,1750.7,0.531]
[1745502427141,5.71161253,1750.9,1750.6,5.2]
[1745502427915,5.71114923,1751.0,1750.6,5.2]
[1745502428138,5.71107085,1751.0,1750.6,10.91222013]
[1745502428366,7.05440826,1751.0,1750.6,5.2]
[1745502428530,5.71167826,1750.8,1750.6,5.2]
[1745502429044,5.71167826,1750.8,1750.3,11.444085]
[1745502429215,5.71167826,1750.8,1750.4,5.71294077]
[1745502429551,5.71169484,1750.8,1750.4,5.71294077]
[1745502429717,5.71151359,1750.9,1750.4,5.712754]
[1745502429916,5.71171498,1750.8,1750.4,7.4284413]
[1745502430145,5.71151359,1750.9,1750.4,7.4284413]
[1745502430350,11.42315032,1750.9,1750.4,7.4284413]
[1745502430523,5.71151359,1750.9,1750.5,5.71261173]
[1745502431061,5.71086999,1751.1,1750.7,5.71188739]
[1745502431360,9.50094722,1751.3,1750.7,10.91178926]
[1745502431537,5.71059515,1751.2,1750.7,16.62363656]
[1745502431720,5.71024179,1751.3,1750.9,5.7113201]
[1745502431924,5.71024179,1751.3,1750.8,6.24249133]
[1745502432119,11.42055608,1751.3,1750.8,6.24245203]
[1745502432324,5.71024179,1751.3,1750.8,6.24245203]
[1745502432552,5.71048554,1751.2,1750.8,6.24245203]
[1745502432758,0.57102418,1751.3,1750.8,0.531]
[1745502433058,5.71079104,1751.1,1750.8,0.531]
[1745502433451,6.49063407,1751.0,1750.7,5.2]
[1745502433637,7.71078333,1751.0,1750.7,5.2]
[1745502433838,1.99954926,1751.0,1750.5,0.531]
[1745502434135,5.71176053,1750.8,1750.5,0.531]
[1745502434353,5.71157112,1750.9,1750.5,0.531]
[1745502434548,5.7120543,1750.7,1750.5,0.531]
[1745502434739,5.71265352,1750.5,1750.4,5.2]
[1745502435359,5.7124757,1750.6,1750.4,5.2]
[1745502435559,5.71265352,1750.5,1750.2,0.531]
[1745502436070,5.7134466,1750.3,1750.1,5.2]
[1745502436569,5.71409654,1750.1,1749.6,0.938757]
[1745502436741,6.85688827,1750.1,1749.7,5.71524682]
[1745502437066,1.14279173,1750.1,1749.7,5.71525014]
[1745502437271,0.7608,1750.4,1749.6,0.938757]
[1745502437478,11.42702531,1750.3,1749.8,5.71487602]
[1745502437634,11.42706677,1750.3,1749.8,5.71487602]
[1745502437835,5.71348495,1750.3,1749.8,5.71478053]
[1745502438072,5.71348495,1750.3,1749.9,0.531]
[1745502438370,6.66088373,1750.3,1749.9,0.531]
[1745502438541,6.66088094,1750.3,1749.9,0.531]
[1745502439080,0.94742849,1750.3,1749.9,0.531]
[1745502439372,5.71374008,1750.2,1749.9,0.531]
[1745502439541,5.71401373,1750.1,1749.9,0.531]
[1745502439742,1.14277538,1750.1,1749.7,5.7150446]
[1745502439960,5.71407718,1750.1,1749.6,6.6541702]
[1745502440163,5.71383885,1750.2,1749.7,5.71525706]
[1745502440330,5.71398252,1750.1,1749.6,6.6541702]
[1745502440524,0.94742849,1750.3,1749.6,6.65414455]
[1745502440731,5.714082,1750.1,1749.7,5.7152486]
[1745502440932,1.14278774,1750.1,1749.6,0.938757]
[1745502441133,5.71384372,1750.2,1749.8,5.71492123]
[1745502441334,6.47392389,1750.4,1749.9,0.531]
[1745502441535,6.47392389,1750.4,1749.9,6.24541968]
[1745502441976,0.7608,1750.4,1749.9,5.732]
[1745502442150,6.47394175,1750.4,1749.9,11.39647514]
[1745502442351,5.71336465,1750.3,1749.9,11.39647514]
[1745502442673,5.71343294,1750.3,1749.9,5.682]
[1745502443064,5.71348305,1750.3,1749.9,5.682]
[1745502443265,5.71372552,1750.2,1749.9,5.682]
[1745502443976,5.71344709,1750.3,1749.9,5.682]
[1745502444178,1.31347535,1750.3,1749.9,11.39646083]
[1745502444489,5.71277765,1750.5,1750.0,5.71406495]
[1745502444784,5.71277765,1750.5,1750.1,5.71377333]
[1745502444947,5.71277765,1750.5,1750.0,5.71406495]
[1745502445156,12.64852235,1750.5,1750.0,5.71406495]
[1745502445465,1.22281388,1750.5,1750.2,0.481]
[1745502445641,6.93553596,1750.5,1750.2,0.481]
[1745502446381,5.71308756,1750.4,1750.0,0.481]
[1745502446582,5.7134548,1750.3,1750.0,0.481]
[1745502446895,6.36293028,1750.3,1750.0,0.481]
[1745502447078,5.7136375,1750.2,1749.9,5.201]
[1745502447462,6.36296984,1750.3,1749.9,5.201]
[1745502447463,6.3628447,1750.3,1749.9,5.201]
[1745502447893,5.71374055,1750.2,1749.9,5.201]
[1745502448655,5.71408951,1750.1,1749.9,5.201]
[1745502448860,0.57140895,1750.0,1749.9,5.201]
[1745502449392,5.71274629,1750.5,1750.1,5.71373323]
[1745502449568,6.2833939,1750.7,1750.2,6.19461343]
[1745502449769,6.2833939,1750.7,1750.3,5.71316835]
[1745502449962,0.57120543,1750.7,1750.3,5.71316835]
[1745502450264,0.57120543,1750.7,1750.3,5.71309083]
[1745502450470,6.52823822,1750.8,1750.4,5.71277513]
[1745502450667,6.52823822,1750.8,1750.3,5.71330629]
[1745502450874,6.52823822,1750.8,1750.2,6.19443168]
[1745502450875,5.71201319,1750.7,1750.2,11.90784898]
[1745502451172,0.8164,1750.8,1750.3,5.71302096]
[1745502451399,6.52827441,1750.8,1750.3,11.42612907]
[1745502451562,7.75225587,1750.8,1750.3,11.42612907]
[1745502451752,5.71202036,1750.7,1750.3,5.71302096]
[1745502452888,5.71202036,1750.7,1750.2,6.1944393]
[1745502453084,5.71202036,1750.7,1750.3,5.71320647]
[1745502453357,7.75221036,1750.8,1750.4,5.71297732]
[1745502453552,6.5282289,1750.8,1750.4,5.71297732]
[1745502453967,6.5282289,1750.8,1750.3,5.7130751]
[1745502454401,6.5282289,1750.8,1750.3,11.42614855]
[1745502454560,6.5282289,1750.8,1750.3,11.42615708]
[1745502454898,6.5282289,1750.8,1750.3,5.71307345]
[1745502455195,6.36497029,1750.7,1750.3,5.71307345]
[1745502455392,6.5282289,1750.8,1750.3,5.71307345]
[1745502455598,6.5282289,1750.8,1750.4,5.71291641]
[1745502456501,5.7118289,1750.8,1750.4,5.71291641]
[1745502456660,5.71144385,1750.9,1750.5,6.19364019]
[1745502457028,5.71138361,1750.9,1750.5,6.19355091]
[1745502457174,5.71138361,1750.9,1750.5,0.481]
[1745502457588,5.71138361,1750.9,1750.5,6.19364096]
[1745502457760,6.54079731,1751.0,1750.5,7.90458097]
[1745502457967,5.71162727,1750.9,1750.5,2.19213929]
[1745502458195,5.71198311,1750.8,1750.5,0.481]
[1745502458494,5.71170104,1750.8,1750.5,0.481]
[1745502458674,11.42314743,1750.9,1750.5,0.481]
[1745502458878,5.71172223,1750.8,1750.5,0.481]
[1745502459408,5.71178858,1750.8,1750.5,0.481]
[1745502459607,5.71178858,1750.8,1750.4,5.205]
[1745502459608,6.85412204,1750.8,1750.4,5.205]
[1745502459765,5.71221022,1750.7,1750.4,5.205]
[1745502460168,5.71181949,1750.8,1750.4,5.205]
[1745502460704,3.8296,1751.0,1750.4,5.205]
[1745502460909,5.71178853,1750.8,1750.4,10.91796991]
[1745502461223,5.7116793,1750.8,1750.4,10.91785707]
[1745502461815,5.71146976,1750.9,1750.4,10.91776057]
[1745502461972,6.54081726,1751.0,1750.5,5.71236146]
[1745502462171,5.71121726,1751.0,1750.6,6.19319711]
[1745502462374,11.42249485,1751.0,1750.6,0.481]
[1745502462578,5.71135352,1750.9,1750.6,0.481]
[1745502463513,0.7584,1750.9,1750.4,5.686]
[1745502463713,5.71219316,1750.7,1750.4,5.686]
[1745502463893,11.42376142,1750.8,1750.4,5.686]
[1745502464093,5.7118327,1750.8,1750.4,5.686]
[1745502464275,6.4699366,1750.9,1750.4,11.39880521]
[1745502464472,5.71179999,1750.8,1750.4,11.39880521]
[1745502464874,11.42243459,1751.0,1750.5,5.71246751]
[1745502465111,5.71140347,1750.9,1750.5,5.71246751]
[1745502465308,5.71140347,1750.9,1750.4,13.10998648]
[1745502465610,5.71140347,1750.9,1750.5,5.71251974]
[1745502465804,5.71115686,1751.0,1750.5,5.7124454]
[1745502466107,5.71115686,1751.0,1750.6,5.71218844]
[1745502466612,11.42242733,1751.0,1750.6,5.71218844]
[1745502466773,5.71115686,1751.0,1750.5,5.71242603]
[1745502467110,11.42246858,1751.0,1750.5,5.71242603]
[1745502467308,6.47999272,1751.2,1750.8,5.71156559]
[1745502467509,0.64799927,1751.1,1750.8,5.71156559]
[1745502467678,6.47980068,1751.2,1750.8,5.71156559]
[1745502467882,5.71018799,1751.3,1750.9,0.481]
[1745502468079,5.71018799,1751.3,1750.9,6.19232324]
[1745502468291,5.7094597,1751.5,1751.0,5.71086783]
[1745502468491,5.70892851,1751.7,1751.2,5.71012031]
[1745502468695,6.35627136,1751.7,1751.2,5.71012031]
[1745502469448,6.35627136,1751.7,1751.1,6.19150336]
[1745502469449,5.70917113,1751.6,1751.1,6.19150336]
[1745502469604,5.7109899,1751.1,1750.8,5.204]
[1745502469809,5.71047686,1751.2,1750.7,6.19267726]
[1745502470113,5.71077612,1751.1,1750.7,0.481]
[1745502470320,5.71115756,1751.0,1750.7,0.481]
[1745502471034,5.71103883,1751.0,1750.6,5.71223256]
[1745502471191,6.85304494,1751.1,1750.6,5.71212052]
[1745502471396,6.85304494,1751.1,1750.6,5.71210534]
[1745502471733,5.71106339,1751.0,1750.6,5.71210534]
[1745502472077,0.8194,1751.2,1750.5,5.685]
[1745502472208,6.52994185,1751.2,1750.7,5.71173733]
[1745502472733,5.71073783,1751.1,1750.7,5.71173733]
[1745502473412,6.52994185,1751.2,1750.8,5.71155998]
[1745502473611,6.52994185,1751.2,1750.8,0.481]
[1745502473935,0.65299419,1751.1,1750.8,0.481]
[1745502474137,6.36372535,1751.1,1750.6,11.90524674]
[1745502474323,6.36372535,1751.1,1750.7,5.71197377]
[1745502474519,12.07466817,1751.1,1750.6,6.19310489]
[1745502475030,5.71146905,1750.9,1750.5,5.204]
[1745502475437,5.71296677,1750.5,1750.2,0.481]
[1745502475607,5.71152664,1750.9,1750.2,0.481]
[1745502475806,3.0,1750.9,1750.2,0.481]
[1745502476007,5.71243571,1750.6,1750.2,6.19445841]
[1745502476206,5.71243571,1750.6,1750.2,7.48809118]
[1745502476503,5.71243571,1750.6,1750.2,1.77463277]
[1745502476824,5.71325672,1750.4,1750.0,5.684]
[1745502477027,5.71353513,1750.3,1750.0,5.684]
[1745502477340,5.71353513,1750.3,1750.0,5.203]
[1745502477527,5.71364391,1750.2,1749.8,6.19572943]
[1745502477840,5.71444307,1750.0,1749.6,11.81234879]
[1745502478045,5.71471421,1749.9,1749.6,6.096757]
[1745502478340,6.4676311,1750.2,1749.7,5.71501606]
[1745502478519,0.7538,1750.2,1749.7,5.71501606]
[1745502478719,0.7538,1750.2,1749.8,5.71490508]
[1745502478720,6.46753526,1750.2,1749.8,5.71490508]
[1745502479037,5.71413507,1750.1,1749.7,1.18117731]
[1745502479336,5.71413507,1750.1,1749.7,5.71525094]
[1745502479535,12.18148249,1750.2,1749.7,5.71525094]
[1745502479768,5.71400275,1750.1,1749.7,5.71525094]
[1745502479966,0.7538,1750.2,1749.8,5.71488341]
[1745502480171,5.71382166,1750.2,1749.7,5.71512245]
[1745502480475,6.28484647,1750.3,1749.7,6.89626306]
[1745502480645,5.71384463,1750.2,1749.7,12.61133208]
[1745502480855,0.57135351,1750.3,1749.9,5.71437791]
[1745502481155,0.57135351,1750.3,1749.6,5.615757]
[1745502481156,5.71443331,1750.0,1749.6,5.615757]
[1745502481358,0.8175,1750.1,1749.6,5.615757]
[1745502481671,0.8175,1750.3,1749.7,0.481]
[1745502481846,5.7136335,1750.2,1749.8,5.71476165]
[1745502482171,0.8175,1750.3,1749.8,1.19109076]
[1745502482339,0.8175,1750.3,1749.7,6.19606941]
[1745502482540,5.71313922,1750.4,1749.9,5.71429059]
[1745502482771,5.71219556,1750.7,1750.2,5.71349334]
[1745502483064,6.51522578,1750.8,1750.4,0.481]
[1745502483277,5.71155076,1750.9,1750.4,6.19375648]
[1745502483775,5.71182294,1750.8,1750.4,0.481]
[1745502483952,0.8034,1751.0,1750.6,5.71231455]
[1745502484140,6.51458781,1751.0,1750.5,5.71247578]
[1745502484340,5.71141892,1750.9,1750.4,12.59357171]
[1745502484561,5.71201825,1750.7,1750.4,5.69]
[1745502484873,5.71216958,1750.7,1750.4,0.481]
[1745502485044,5.71216958,1750.7,1750.3,5.71323939]
[1745502485045,5.71200091,1750.7,1750.2,5.209]
[1745502485236,5.71253749,1750.6,1750.2,5.209]
[1745502485430,0.57125375,1750.6,1750.3,5.7132779]
[1745502485634,0.57125375,1750.6,1750.2,5.209]
[1745502485635,5.71215408,1750.7,1750.2,5.209]
[1745502485834,5.71222954,1750.7,1750.2,5.209]
[1745502486037,5.71222954,1750.7,1750.2,10.92241132]
[1745502486258,5.71222954,1750.7,1750.2,16.63588131]
[1745502486443,5.71315226,1750.4,1750.0,6.19514545]
[1745502486655,5.71277658,1750.5,1750.0,6.19507951]
[1745502486864,5.7134797,1750.3,1750.0,0.481]
[1745502487469,5.71315966,1750.4,1750.0,0.481]
[1745502487672,5.7125881,1750.6,1750.0,0.481]
[1745502487876,5.71269331,1750.5,1750.1,5.71382807]
[1745502488071,5.7125881,1750.6,1750.1,5.71382807]
[1745502488278,5.71282838,1750.5,1750.0,6.19508653]
[1745502488578,5.71282838,1750.5,1750.1,5.71385521]
[1745502488877,6.85536292,1750.5,1750.0,6.19506794]
[1745502489242,0.7541,1750.4,1750.0,0.481]
[1745502489447,5.71366019,1750.2,1750.0,0.481]
[1745502489867,5.71358366,1750.3,1750.0,0.481]
[1745502490147,11.42718967,1750.3,1750.0,0.481]
[1745502490347,5.71363669,1750.2,1750.0,0.481]
[1745502490655,12.64531363,1750.3,1750.0,0.481]
[1745502490867,6.93168139,1750.3,1750.0,0.481]
[1745502491258,5.71376573,1750.2,1750.0,0.481]
[1745502491492,5.71376573,1750.2,1749.9,22.347]
[1745502491795,11.4283678,1750.1,1749.9,5.209]
[1745502492086,5.7144542,1750.0,1749.6,11.33212177]
[1745502492286,6.51467065,1750.1,1749.6,11.33212054]
[1745502492490,5.71506163,1749.8,1749.6,5.616757]
[1745502493147,0.8005,1750.1,1749.6,0.407757]
[1745502493351,5.71440914,1750.0,1749.6,0.407757]
[1745502493581,6.36590005,1750.0,1749.6,0.407757]
[1745502493851,5.71470871,1749.9,1749.6,0.407757]
[1745502494051,11.42959601,1749.9,1749.6,0.407757]
[1745502494250,5.71470871,1749.9,1749.6,0.407757]
[1745502494445,6.36591926,1750.0,1749.6,0.407757]
[1745502494659,12.08046509,1750.0,1749.6,0.407757]
[1745502494898,6.36591926,1750.0,1749.6,0.407757]
[1745502495103,6.40691803,1750.2,1749.6,1.06822201]
[1745502495319,5.71401487,1750.1,1749.8,0.481]
[1745502495972,5.71438807,1750.0,1749.6,0.888757]
[1745502496394,5.7139592,1750.1,1749.6,0.888757]
[1745502496581,5.71481212,1749.9,1749.6,0.888757]